bitfinex-derivatives/quotes_SOLF0:USTF0_20260110
["timestamp","ask_amount","ask_price","bid_price","bid_amount"]
[1768074592519,0.30306939,136.05,135.99,6.6266]
[1768074592720,5.51719201,136.04,135.99,6.6266]
[1768074592927,5.51719201,136.03,135.99,6.6266]
[1768074593127,5.51719201,136.02,135.99,6.6266]
[1768074593326,0.30306939,136.05,135.99,6.6266]
[1768074593626,5.51716089,136.04,135.99,6.6266]
[1768074593819,5.51716089,136.03,135.99,6.6266]
[1768074594019,5.51716089,136.02,135.99,6.6266]
[1768074594223,0.30306939,136.05,135.99,6.6266]
[1768074594422,5.51716089,136.04,135.99,6.6266]
[1768074594630,5.51716089,136.03,135.99,6.6266]
[1768074594821,5.51716089,136.02,135.99,6.6266]
[1768074595021,0.30306939,136.05,135.99,6.6266]
[1768074595220,5.51719155,136.04,135.99,6.6266]
[1768074595422,5.51719155,136.03,135.99,6.6266]
[1768074595623,5.51719155,136.02,135.99,6.6266]
[1768074595923,0.30306939,136.05,135.99,6.6266]
[1768074596123,5.5172315,136.04,135.99,6.6266]
[1768074596326,5.5172315,136.03,135.99,6.6266]
[1768074596623,5.5172315,136.02,135.99,6.6266]
[1768074596823,0.30306939,136.05,135.99,6.6266]
[1768074597030,5.51728106,136.04,135.99,6.6266]
[1768074597330,5.51728106,136.03,135.99,6.6266]
[1768074597531,5.51728106,136.02,135.99,6.6266]
[1768074597730,0.30306939,136.05,135.99,6.6266]
[1768074597932,5.5173407,136.04,135.99,6.6266]
[1768074598132,5.5173407,136.03,135.99,6.6266]
[1768074598430,5.5173407,136.02,135.99,6.6266]
[1768074598631,0.30306939,136.05,135.99,6.6266]
[1768074598834,5.51741096,136.04,135.99,6.6266]
[1768074599132,5.51741096,136.03,135.99,6.6266]
[1768074599432,5.51741096,136.02,135.99,6.6266]
[1768074599631,0.30306939,136.05,135.99,6.6266]
[1768074599834,5.51749727,136.04,135.99,6.6266]
[1768074600022,5.51749727,136.03,135.99,6.6266]
[1768074600226,5.51749727,136.02,135.99,6.6266]
[1768074600424,0.30306939,136.05,135.99,6.6266]
[1768074600628,5.51758023,136.04,135.99,6.6266]
[1768074600829,5.51758023,136.03,135.99,6.6266]
[1768074601126,5.51758023,136.02,135.99,6.6266]
[1768074601325,0.30306939,136.05,135.99,6.6266]
[1768074601530,5.51769274,136.04,135.99,6.6266]
[1768074601724,5.51769274,136.03,135.99,6.6266]
[1768074601924,5.51769274,136.02,135.99,6.6266]
[1768074602225,0.30306939,136.05,135.99,6.6266]
[1768074602429,5.51770991,136.04,135.99,6.6266]
[1768074602728,5.51770991,136.03,135.99,6.6266]
[1768074602928,5.51770991,136.02,135.99,6.6266]
[1768074603132,0.30306939,136.05,135.99,6.6266]
[1768074603332,5.51782158,136.04,135.99,6.6266]
[1768074603540,5.51782158,136.03,135.99,6.6266]
[1768074603742,5.51782158,136.02,135.99,6.6266]
[1768074603941,0.30306939,136.05,135.99,6.6266]
[1768074604240,5.51796918,136.04,135.99,6.6266]
[1768074604432,5.51796918,136.03,135.99,6.6266]
[1768074604633,5.51796918,136.02,135.99,6.6266]
[1768074604834,0.30306939,136.05,135.99,6.6266]
[1768074605038,5.51813894,136.04,135.99,6.6266]
[1768074605330,5.51813894,136.03,135.99,6.6266]
[1768074605535,5.51813894,136.02,135.99,6.6266]
[1768074605831,0.30306939,136.05,135.99,6.6266]
[1768074606032,5.51833583,136.04,135.99,6.6266]
[1768074606234,5.51833583,136.03,135.99,6.6266]
[1768074606431,5.51833583,136.02,135.99,6.6266]
[1768074606641,0.30306939,136.05,135.99,6.6266]
[1768074606841,5.51857071,136.04,135.99,6.6266]
[1768074607043,5.51857071,136.03,135.99,6.6266]
[1768074607242,5.51857071,136.02,135.99,6.6266]
[1768074607443,0.30306939,136.05,135.99,6.6266]
[1768074607646,5.51885584,136.04,135.99,6.6266]
[1768074607943,0.30306939,136.05,135.99,6.6266]
[1768074607944,5.51885584,136.03,135.99,6.6266]
[1768074608143,5.51885584,136.02,135.99,6.6266]
[1768074608331,0.30306939,136.05,135.99,6.6266]
[1768074608538,5.51922249,136.04,135.99,6.6266]
[1768074608835,5.51922249,136.03,135.99,6.6266]
[1768074609037,5.51922249,136.02,135.99,6.6266]
[1768074609240,0.30306939,136.05,135.99,6.6266]
[1768074609440,5.51925488,136.04,135.99,6.6266]
[1768074609646,5.51925488,136.03,135.99,6.6266]
[1768074609851,5.51925488,136.02,135.99,6.6266]
[1768074610048,0.30306939,136.05,135.99,6.6266]
[1768074610248,5.51925488,136.04,135.99,6.6266]
[1768074610447,5.51925488,136.03,135.99,6.6266]
[1768074610650,5.51925488,136.02,135.99,6.6266]
[1768074610949,0.30306939,136.05,135.99,6.6266]
[1768074611151,5.51929131,136.04,135.99,6.6266]
[1768074611344,5.51929131,136.03,135.99,6.6266]
[1768074611545,5.51929131,136.02,135.99,6.6266]
[1768074611745,0.30306939,136.05,135.99,6.6266]
[1768074611946,5.51934095,136.04,135.99,6.95663196]
[1768074612146,5.51934095,136.03,135.99,6.95663196]
[1768074612352,5.51934095,136.02,135.99,6.95663196]
[1768074612646,0.30306939,136.05,135.99,6.95663196]
[1768074612840,5.51939669,136.04,135.99,6.95663196]
[1768074613041,5.51939669,136.03,135.99,6.95663196]
[1768074613238,5.51939669,136.02,135.99,6.95663196]
[1768074613452,0.30306939,136.05,135.99,6.95663196]
[1768074613655,5.51945944,136.04,135.99,6.95663196]
[1768074613847,5.51945944,136.03,135.99,6.95663196]
[1768074614049,5.51945944,136.02,135.99,6.95663196]
[1768074614346,0.30306939,136.05,135.99,6.95663196]
[1768074614543,5.51953046,136.04,135.99,6.95663196]
[1768074614749,5.51953046,136.03,135.99,6.95663196]
[1768074614953,5.51953046,136.02,135.99,6.95663196]
[1768074615153,0.30306939,136.05,135.99,6.95663196]
[1768074615356,5.51959842,136.04,135.99,6.95663196]
[1768074615555,5.51959842,136.03,135.99,6.95663196]
[1768074615749,5.51959842,136.02,135.99,6.95663196]
[1768074615945,0.30306939,136.05,135.99,6.95663196]
[1768074616143,5.51960989,136.04,135.99,6.95663196]
[1768074616349,5.51960989,136.03,135.99,6.95663196]
[1768074616549,5.51960989,136.02,135.99,6.95663196]
[1768074616753,0.30306939,136.05,135.99,6.95663196]
[1768074616954,5.51970415,136.04,135.99,6.95663196]
[1768074617256,5.51970415,136.03,135.99,6.95663196]
[1768074617556,5.51970415,136.02,135.99,6.95663196]
[1768074617757,0.30306939,136.05,135.99,6.95663196]
[1768074617958,5.52025464,136.04,135.99,6.95663196]
[1768074618158,5.52025464,136.03,135.99,6.95663196]
[1768074618360,5.52025464,136.02,135.99,6.95663196]
[1768074618558,0.30306939,136.05,135.99,6.95663196]
[1768074618760,5.52039308,136.04,135.99,6.95663196]
[1768074619065,5.52039308,136.03,135.99,6.95663196]
[1768074619261,5.52039308,136.02,135.99,6.95663196]
[1768074619461,0.30306939,136.05,135.99,6.95663196]
[1768074619761,5.52058285,136.04,135.99,6.95663196]
[1768074620055,5.52058285,136.03,135.99,6.95663196]
[1768074620259,5.52058285,136.02,135.99,6.95663196]
[1768074620463,0.30306939,136.05,135.99,6.95663196]
[1768074620662,5.52095616,136.04,135.99,6.95663196]
[1768074620863,5.52095616,136.03,135.99,6.95663196]
[1768074621163,5.52095616,136.02,135.99,6.95663196]
[1768074621362,0.30306939,136.05,135.99,6.95663196]
[1768074621563,5.52093518,136.04,135.99,6.95663196]
[1768074621763,5.52093518,136.03,135.99,6.95663196]
[1768074621964,5.52093518,136.02,135.99,6.95663196]
[1768074622165,0.30306939,136.05,135.99,6.95663196]
[1768074622367,5.52093518,136.04,136.0,6.626]
[1768074622566,5.52093518,136.03,136.0,6.626]
[1768074622762,0.30306939,136.05,136.0,6.626]
[1768074622969,5.52105936,136.04,136.0,6.626]
[1768074623171,5.52105936,136.03,136.0,6.626]
[1768074623360,0.30306939,136.05,136.0,6.626]
[1768074623670,5.52026702,136.04,136.0,6.626]
[1768074623866,5.52026702,136.03,136.0,6.626]
[1768074624058,0.30306939,136.05,136.0,6.626]
[1768074624260,5.52026702,136.04,136.0,6.626]
[1768074624561,5.52026702,136.03,136.0,6.626]
[1768074624868,0.30306939,136.05,136.0,6.626]
[1768074625076,5.51992203,136.04,136.0,6.626]
[1768074625270,5.51992203,136.03,136.0,6.626]
[1768074625473,0.30306939,136.05,136.0,6.626]
[1768074625661,5.51966592,136.04,136.0,6.626]
[1768074625862,5.51966592,136.03,136.0,6.626]
[1768074626154,0.30306939,136.05,136.0,6.626]
[1768074626355,5.51966592,136.04,136.0,6.626]
[1768074626567,5.51966592,136.03,136.0,6.626]
[1768074626768,0.30306939,136.05,136.0,6.626]
[1768074627067,5.5194585,136.04,136.0,6.626]
[1768074627266,0.30306939,136.05,136.0,6.626]
[1768074627467,5.51914922,136.04,136.0,6.626]
[1768074627668,0.30306939,136.05,136.0,6.626]
[1768074627868,5.51914922,136.04,136.0,6.626]
[1768074628071,0.30306939,136.05,136.0,6.626]
[1768074628270,5.51914922,136.04,136.0,6.626]
[1768074628568,0.30306939,136.05,136.0,6.626]
[1768074628768,5.51873173,136.04,136.0,6.626]
[1768074628967,0.30306939,136.05,136.0,6.626]
[1768074629169,5.51873173,136.04,136.0,6.626]
[1768074629370,0.30306939,136.05,136.0,6.626]
[1768074629564,5.51838023,136.04,136.0,6.626]
[1768074629763,0.30306939,136.05,136.0,6.626]
[1768074629959,5.51838023,136.04,136.0,6.626]
[1768074630157,0.30306939,136.05,136.0,6.626]
[1768074630361,5.51838023,136.04,136.0,6.626]
[1768074630560,0.30306939,136.05,136.0,6.626]
[1768074630762,5.51808524,136.04,136.0,6.626]
[1768074630965,0.30306939,136.05,136.0,6.626]
[1768074631165,5.51808524,136.04,136.0,6.626]
[1768074631366,0.30306939,136.05,136.0,6.626]
[1768074631558,5.51782788,136.04,136.0,6.626]
[1768074631757,0.30306939,136.05,136.0,6.626]
[1768074631962,5.51782788,136.04,136.0,6.626]
[1768074632173,0.30306939,136.05,136.0,6.626]
[1768074632368,5.51782788,136.04,136.0,6.626]
[1768074632573,5.51782788,136.03,136.0,6.95603196]
[1768074632777,0.30306939,136.05,136.0,6.95603196]
[1768074633068,5.51760317,136.04,136.0,6.95603196]
[1768074633273,5.51760317,136.03,136.0,6.95603196]
[1768074633472,0.30306939,136.05,136.0,6.95603196]
[1768074633674,5.51740527,136.04,136.0,6.95603196]
[1768074633873,5.51740527,136.03,136.0,6.95603196]
[1768074634076,0.30306939,136.05,136.0,6.95603196]
[1768074634375,5.51740527,136.04,136.0,6.95603196]
[1768074634574,5.51740527,136.03,136.0,6.95603196]
[1768074634773,0.30306939,136.05,136.0,6.95603196]
[1768074634976,5.51723037,136.04,136.0,6.95603196]
[1768074635273,5.51723037,136.03,136.0,6.95603196]
[1768074635475,0.30306939,136.05,136.0,6.95603196]
[1768074635777,5.51707569,136.04,136.0,6.95603196]
[1768074635969,5.51707569,136.03,136.0,6.95603196]
[1768074636165,0.30306939,136.05,136.0,6.95603196]
[1768074636368,5.51707569,136.04,136.0,6.95603196]
[1768074636571,5.51707569,136.03,136.0,6.95603196]
[1768074636774,0.30306939,136.05,136.0,6.95603196]
[1768074636973,5.5169399,136.04,136.0,6.95603196]
[1768074637271,5.5169399,136.03,136.0,6.95603196]
[1768074637471,0.30306939,136.05,136.0,6.95603196]
[1768074637672,5.51682069,136.04,136.0,6.95603196]
[1768074637871,5.51682069,136.03,136.0,6.95603196]
[1768074638071,0.30306939,136.05,136.0,6.95603196]
[1768074638274,5.5168207,136.04,136.0,6.95603196]
[1768074638474,5.5168207,136.03,136.0,6.95603196]
[1768074638664,0.30306939,136.05,136.0,6.95603196]
[1768074638870,5.51671682,136.04,136.0,6.95603196]
[1768074639072,5.51671682,136.03,136.0,6.95603196]
[1768074639269,0.30306939,136.05,136.0,6.95603196]
[1768074639469,5.51662454,136.04,136.0,6.95603196]
[1768074639665,5.51662454,136.03,136.0,6.95603196]
[1768074639874,0.30306939,136.05,136.0,6.95603196]
[1768074640074,5.51662454,136.04,136.0,6.95603196]
[1768074640278,5.51662454,136.03,136.0,6.95603196]
[1768074640477,0.30306939,136.05,136.0,6.95603196]
[1768074640674,5.51654852,136.04,136.0,6.95603196]
[1768074640977,5.51654852,136.03,136.0,6.95603196]
[1768074641172,0.30306939,136.05,136.0,6.95603196]
[1768074641371,5.51654852,136.04,136.0,6.95603196]
[1768074641577,5.51654852,136.03,136.0,6.95603196]
[1768074641778,0.30306939,136.05,136.0,6.95603196]
[1768074641975,5.51648541,136.04,136.0,6.95603196]
[1768074642178,5.51648541,136.03,136.0,6.95603196]
[1768074642366,0.30306939,136.05,136.0,6.95603196]
[1768074642572,5.51643472,136.04,136.0,6.95603196]
[1768074642866,5.51643472,136.03,136.0,6.95603196]
[1768074643065,0.30306939,136.05,136.0,6.95603196]
[1768074643270,5.51643472,136.04,136.0,6.95603196]
[1768074643472,5.51643472,136.03,136.0,6.95603196]
[1768074643668,0.30306939,136.05,136.0,6.95603196]
[1768074643876,5.51639607,136.04,136.0,6.95603196]
[1768074644072,5.51639607,136.03,136.0,6.95603196]
[1768074644272,0.30306939,136.05,136.0,6.95603196]
[1768074644572,5.51636918,136.04,136.0,6.95603196]
[1768074644772,5.51636918,136.03,136.0,6.95603196]
[1768074644972,0.30306939,136.05,136.0,6.95603196]
[1768074645179,5.51636918,136.04,136.0,6.95603196]
[1768074645381,5.51636918,136.03,136.0,6.95603196]
[1768074645675,0.30306939,136.05,136.0,6.95603196]
[1768074645871,5.51635565,136.04,136.0,6.95603196]
[1768074646072,5.51635565,136.03,136.0,6.95603196]
[1768074646273,0.30306939,136.05,136.0,6.95603196]
[1768074646572,5.51634651,136.04,136.0,6.95603196]
[1768074646773,5.51634651,136.03,136.0,6.95603196]
[1768074646973,0.30306939,136.05,136.0,6.95603196]
[1768074647174,5.51634651,136.04,136.0,6.95603196]
[1768074647469,5.51634651,136.03,136.0,6.95603196]
[1768074647671,0.30306939,136.05,136.0,6.95603196]
[1768074647871,5.5163795,136.04,136.0,6.95603196]
[1768074648069,5.5163795,136.03,136.0,6.95603196]
[1768074648281,0.30306939,136.05,136.0,6.95603196]
[1768074648580,5.51639315,136.04,136.0,6.95603196]
[1768074648776,5.51639315,136.03,136.0,6.95603196]
[1768074648974,0.30306939,136.05,136.0,6.95603196]
[1768074649174,5.51639307,136.04,136.0,6.95603196]
[1768074649371,5.51639307,136.03,136.0,6.95603196]
[1768074649572,0.30306939,136.05,136.0,6.95603196]
[1768074649775,5.51641767,136.04,136.0,6.95603196]
[1768074649978,5.51641767,136.03,136.0,6.95603196]
[1768074650281,0.30306939,136.05,136.0,6.95603196]
[1768074650478,5.5166363,136.04,136.0,6.95603196]
[1768074650681,0.30306939,136.05,136.0,6.95603196]
[1768074650682,5.5166363,136.03,136.0,6.95603196]
[1768074650981,0.30306939,136.05,136.0,6.95603196]
[1768074651278,5.51646197,136.04,136.0,6.95603196]
[1768074651477,5.51646197,136.03,136.0,6.95603196]
[1768074651677,0.30306939,136.05,136.0,6.95603196]
[1768074651877,5.51649416,136.04,136.0,6.95603196]
[1768074652078,5.51649416,136.03,136.0,6.95603196]
[1768074652276,0.30306939,136.05,136.0,6.95603196]
[1768074652476,5.51655349,136.04,136.0,6.95603196]
[1768074652680,5.51655349,136.03,136.0,6.95603196]
[1768074652883,0.30306939,136.05,136.0,6.95603196]
[1768074653079,5.51655534,136.04,136.0,6.95603196]
[1768074653277,5.51655534,136.03,136.0,6.95603196]
[1768074653476,0.30306939,136.05,136.0,6.95603196]
[1768074653678,5.51662598,136.04,136.0,6.95603196]
[1768074653883,5.51662598,136.03,136.0,6.95603196]
[1768074654081,0.30306939,136.05,136.0,6.95603196]
[1768074654272,5.51681316,136.04,136.0,6.95603196]
[1768074654478,5.51681316,136.03,136.0,6.95603196]
[1768074654677,0.30306939,136.05,136.0,6.95603196]
[1768074654977,5.51689646,136.04,136.0,6.95603196]
[1768074655178,5.51689646,136.03,136.0,6.95603196]
[1768074655376,0.30306939,136.05,136.0,6.95603196]
[1768074655575,5.5171803,136.04,136.0,6.95603196]
[1768074655780,5.5171803,136.03,136.0,6.95603196]
[1768074655981,0.30306939,136.05,136.0,6.95603196]
[1768074656179,5.5171803,136.04,136.0,6.95603196]
[1768074656380,5.5171803,136.03,136.0,6.95603196]
[1768074656590,0.30306939,136.05,136.0,6.95603196]
[1768074656790,5.51729114,136.04,136.0,6.95603196]
[1768074656981,5.51729114,136.03,136.0,6.95603196]
[1768074657182,0.30306939,136.05,136.0,6.95603196]
[1768074657390,5.5173864,136.04,136.0,6.95603196]
[1768074657589,5.5173864,136.03,136.0,6.95603196]
[1768074657789,0.30306939,136.05,136.0,6.95603196]
[1768074657982,5.51741725,136.04,136.0,6.95603196]
[1768074658184,5.51741725,136.03,136.0,6.95603196]
[1768074658381,0.30306939,136.05,136.0,6.95603196]
[1768074658581,5.51755999,136.04,136.0,6.95603196]
[1768074658786,5.51755999,136.03,136.0,6.95603196]
[1768074658988,0.30306939,136.05,136.0,6.95603196]
[1768074659184,5.51755999,136.04,136.0,6.95603196]
[1768074659387,5.51755999,136.03,136.0,6.95603196]
[1768074659690,0.30306939,136.05,136.0,6.95603196]
[1768074659989,5.5177211,136.04,136.0,6.95603196]
[1768074660190,5.5177211,136.03,136.0,6.95603196]
[1768074660389,0.30306939,136.05,136.0,6.95603196]
[1768074660583,5.51787012,136.04,136.0,6.95603196]
[1768074660784,7.012e-05,136.03,136.02,0.31779276]
[1768074660986,0.31801459,136.07,136.02,0.31779276]
[1768074665790,6.93346751,136.09,136.03,0.33072021]
[1768074666395,0.31126751,136.08,136.03,0.33072021]
[1768074666895,1.85053059,136.1,136.03,0.33072021]
[1768074667891,0.31126751,136.09,136.03,0.33072021]
[1768074668097,0.31126751,136.11,136.04,0.33072021]
[1768074669401,0.31126751,136.11,136.05,0.33072021]
[1768074672812,5.47746885,136.1,136.05,0.33072021]
[1768074673003,5.47746885,136.09,136.05,0.33072021]
[1768074673203,0.31126751,136.11,136.05,0.33072021]
[1768074673405,5.47733035,136.1,136.05,0.33072021]
[1768074673702,5.47733035,136.09,136.05,0.33072021]
[1768074673903,0.31126751,136.11,136.05,0.33072021]
[1768074674094,5.47627541,136.1,136.05,0.33072021]
[1768074674293,5.47627541,136.09,136.05,6.95442021]
[1768074674587,0.31126751,136.11,136.05,6.95442021]
[1768074674794,5.47523491,136.1,136.05,6.95442021]
[1768074675090,5.47523491,136.09,136.05,6.95442021]
[1768074675292,0.31126751,136.11,136.05,6.95442021]
[1768074675493,5.47382514,136.1,136.05,6.95442021]
[1768074675798,5.47382514,136.09,136.05,6.95442021]
[1768074676099,0.31126751,136.11,136.05,6.95442021]
[1768074676298,5.47222635,136.1,136.05,6.95442021]
[1768074676498,5.47222635,136.09,136.05,6.95442021]
[1768074676701,0.31126751,136.11,136.05,6.95442021]
[1768074676895,5.47179491,136.1,136.05,6.95442021]
[1768074677094,5.47179491,136.09,136.05,6.95442021]
[1768074677294,0.31126751,136.11,136.05,6.95442021]
[1768074677492,5.47105886,136.1,136.05,6.95442021]
[1768074677696,5.47105886,136.09,136.05,6.95442021]
[1768074677896,0.31126751,136.11,136.05,6.95442021]
[1768074678099,5.46280086,136.1,136.05,6.95442021]
[1768074678298,5.46280086,136.09,136.05,6.95442021]
[1768074678495,0.31126751,136.11,136.05,6.95442021]
[1768074678691,5.46212347,136.1,136.05,6.95442021]
[1768074678893,0.31126751,136.11,136.05,6.95442021]
[1768074679197,5.46237883,136.1,136.05,6.95442021]
[1768074679402,0.31126751,136.11,136.05,6.95442021]
[1768074679603,5.46158429,136.1,136.05,6.95442021]
[1768074679902,0.31126751,136.11,136.05,6.95442021]
[1768074680103,5.4615843,136.1,136.05,6.95442021]
[1768074680308,0.31126751,136.11,136.05,6.95442021]
[1768074680502,5.4609011,136.1,136.05,6.95442021]
[1768074680701,0.31126751,136.11,136.05,6.95442021]
[1768074680897,5.4609011,136.1,136.05,6.95442021]
[1768074681097,0.31126751,136.11,136.05,6.95442021]
[1768074681293,5.4609011,136.1,136.05,6.95442021]
[1768074681601,0.31126751,136.11,136.05,6.95442021]
[1768074681800,5.4603139,136.1,136.05,6.95442021]
[1768074682002,0.31126751,136.11,136.05,6.95442021]
[1768074682197,5.4603139,136.1,136.05,6.95442021]
[1768074682397,0.31126751,136.11,136.05,6.95442021]
[1768074682697,5.45981546,136.1,136.05,6.95442021]
[1768074682896,0.31126751,136.11,136.05,6.95442021]
[1768074683098,5.45981546,136.1,136.05,6.95442021]
[1768074683295,0.31126751,136.11,136.05,6.95442021]
[1768074683603,5.45939755,136.1,136.05,6.95442021]
[1768074683803,0.31126751,136.11,136.05,6.95442021]
[1768074683998,5.45939755,136.1,136.05,6.95442021]
[1768074684295,0.31126751,136.11,136.05,6.95442021]
[1768074684496,5.4590533,136.1,136.05,6.95442021]
[1768074684699,0.31126751,136.11,136.05,6.95442021]
[1768074684898,5.4590533,136.1,136.05,6.95442021]
[1768074685098,0.31126751,136.11,136.05,6.95442021]
[1768074696713,5.46110539,136.1,136.05,6.95442021]
[1768074696913,0.31126751,136.11,136.05,6.95442021]
[1768074697413,5.46178359,136.1,136.05,6.95442021]
[1768074697608,0.31126751,136.11,136.05,6.95442021]
[1768074697912,5.46183635,136.1,136.05,6.95442021]
[1768074698114,0.31126751,136.11,136.05,6.95442021]
[1768074698314,5.46183818,136.1,136.05,6.95442021]
[1768074698516,0.31126751,136.11,136.05,6.95442021]
[1768074698715,5.46249189,136.1,136.05,6.95442021]
[1768074699013,0.31126751,136.11,136.05,6.95442021]
[1768074699216,5.46249189,136.1,136.05,6.95442021]
[1768074699407,0.31126751,136.11,136.05,6.95442021]
[1768074699606,5.46325619,136.1,136.05,6.95442021]
[1768074699809,0.31126751,136.11,136.05,6.95442021]
[1768074700016,5.46325892,136.1,136.05,6.95442021]
[1768074700311,0.31126751,136.11,136.05,6.95442021]
[1768074700512,5.46414554,136.1,136.05,6.95442021]
[1768074700715,0.31126751,136.11,136.05,6.95442021]
[1768074700911,5.46414554,136.1,136.05,6.95442021]
[1768074701104,0.31126751,136.11,136.05,6.95442021]
[1768074701305,5.46414554,136.1,136.05,6.95442021]
[1768074701510,0.31126751,136.11,136.05,6.95442021]
[1768074701709,5.46517026,136.1,136.05,6.95442021]
[1768074702016,0.31126751,136.11,136.05,6.95442021]
[1768074702216,5.46517026,136.1,136.05,6.95442021]
[1768074702417,0.31126751,136.11,136.05,6.95442021]
[1768074702618,5.46646254,136.1,136.05,6.95442021]
[1768074702822,0.31126751,136.11,136.05,6.95442021]
[1768074703118,5.4664598,136.1,136.05,6.95442021]
[1768074703318,0.31126751,136.11,136.05,6.95442021]
[1768074703519,5.46772492,136.1,136.05,6.95442021]
[1768074703818,0.31126751,136.11,136.05,6.95442021]
[1768074704020,5.46772492,136.1,136.05,6.95442021]
[1768074704218,0.31126751,136.11,136.05,6.95442021]
[1768074704418,5.46923871,136.1,136.05,6.95442021]
[1768074704623,0.31126751,136.11,136.05,6.95442021]
[1768074704821,5.46922995,136.1,136.05,6.95442021]
[1768074705123,0.31126751,136.11,136.05,6.95442021]
[1768074705328,5.46922995,136.1,136.05,6.95442021]
[1768074705515,0.31126751,136.11,136.05,6.95442021]
[1768074705711,5.46923298,136.1,136.05,6.95442021]
[1768074705915,0.31126751,136.11,136.05,6.95442021]
[1768074706118,5.46923298,136.1,136.05,6.95442021]
[1768074706418,0.31126751,136.11,136.05,6.95442021]
[1768074706617,5.47043005,136.1,136.05,6.95442021]
[1768074706817,0.31126751,136.11,136.05,6.95442021]
[1768074707114,5.47043188,136.1,136.05,6.95442021]
[1768074707315,0.31126751,136.11,136.05,6.95442021]
[1768074707515,5.47147263,136.1,136.05,6.95442021]
[1768074707816,0.31126751,136.11,136.05,6.95442021]
[1768074708013,5.47140662,136.1,136.05,6.95442021]
[1768074708220,0.31126751,136.11,136.05,6.95442021]
[1768074708414,5.47140936,136.1,136.05,6.95442021]
[1768074708615,0.31126751,136.11,136.05,6.95442021]
[1768074708822,5.47264148,136.1,136.05,6.95442021]
[1768074709016,0.31126751,136.11,136.05,6.95442021]
[1768074709217,5.47263869,136.1,136.05,6.95442021]
[1768074709417,0.31126751,136.11,136.05,6.95442021]
[1768074709621,5.4741279,136.1,136.05,6.95442021]
[1768074709815,0.31126751,136.11,136.05,6.95442021]
[1768074710015,5.4741279,136.1,136.05,6.95442021]
[1768074710221,0.31126751,136.11,136.05,6.95442021]
[1768074710417,5.47412688,136.1,136.05,6.95442021]
[1768074710616,5.47412688,136.09,136.05,6.95442021]
[1768074710818,0.31126751,136.11,136.05,6.95442021]
[1768074711122,5.47596655,136.1,136.05,6.95442021]
[1768074711324,0.31126751,136.11,136.05,6.95442021]
[1768074711325,5.47596655,136.09,136.05,6.95442021]
[1768074711519,0.31126751,136.11,136.05,6.95442021]
[1768074711822,5.47772064,136.1,136.05,6.95442021]
[1768074712024,5.47772064,136.09,136.05,6.95442021]
[1768074712222,0.31126751,136.11,136.05,6.95442021]
[1768074712421,5.47772064,136.1,136.05,6.95442021]
[1768074712613,5.47772064,136.09,136.05,6.95442021]
[1768074712815,0.31126751,136.11,136.05,6.95442021]
[1768074713026,5.4788446,136.1,136.05,6.95442021]
[1768074713321,5.4788446,136.09,136.05,6.95442021]
[1768074713525,0.31126751,136.11,136.05,6.95442021]
[1768074713723,5.47920764,136.1,136.05,6.95442021]
[1768074713925,5.47920764,136.09,136.05,6.95442021]
[1768074714126,0.31126751,136.11,136.05,6.95442021]
[1768074714326,5.47920764,136.1,136.05,6.95442021]
[1768074714530,5.47920764,136.09,136.05,6.95442021]
[1768074714724,0.31126751,136.11,136.05,6.95442021]
[1768074714921,5.47964178,136.1,136.05,6.95442021]
[1768074715121,5.47964178,136.09,136.05,6.95442021]
[1768074715322,0.31126751,136.11,136.05,6.95442021]
[1768074715524,5.47975992,136.1,136.05,6.95442021]
[1768074715723,5.47975992,136.09,136.05,6.95442021]
[1768074715927,0.31126751,136.11,136.05,6.95442021]
[1768074716129,5.47975992,136.1,136.05,6.95442021]
[1768074716331,5.47975992,136.09,136.05,6.95442021]
[1768074716529,0.31126751,136.11,136.05,6.95442021]
[1768074716730,5.48128225,136.1,136.05,6.95442021]
[1768074716930,5.48128225,136.09,136.05,6.95442021]
[1768074717131,0.31126751,136.11,136.05,6.95442021]
[1768074717331,5.48128225,136.1,136.05,6.95442021]
[1768074717630,5.48128225,136.09,136.05,6.95442021]
[1768074717837,0.31126751,136.11,136.05,6.95442021]
[1768074718034,5.48147543,136.1,136.05,6.95442021]
[1768074718225,5.48147543,136.09,136.05,6.95442021]
[1768074718425,0.31126751,136.11,136.06,0.31369004]
[1768074718625,5.48169935,136.1,136.06,0.31369004]
[1768074718830,5.48169935,136.09,136.06,0.31369004]
[1768074719030,0.31126751,136.11,136.06,0.31369004]
[1768074719228,5.48170301,136.1,136.06,0.31369004]
[1768074719428,5.48170301,136.09,136.06,0.31369004]
[1768074719732,0.31126751,136.11,136.06,0.31369004]
[1768074719933,5.48251172,136.1,136.06,0.31369004]
[1768074720132,5.48251172,136.09,136.06,0.31369004]
[1768074720333,0.31126751,136.11,136.06,0.31369004]
[1768074720536,5.4828,136.1,136.06,0.31369004]
[1768074720735,5.4828,136.09,136.06,0.31369004]
[1768074721032,0.31126751,136.11,136.06,0.31369004]
[1768074721231,5.4828,136.1,136.06,0.31369004]
[1768074721434,5.4828,136.09,136.06,0.31369004]